fUST/lending_fUST_20241229
["ID","MTS","AMOUNT","RATE_DAILY","PERIOD"]
[346952167,1735421448694,-151.0,0.00019178,2]
[346952168,1735421448707,-151.0,0.00019178,2]
[346952169,1735421448716,-151.0,0.00019178,2]
[346952170,1735421448726,-151.0,0.00019178,2]
[346952171,1735421448735,-151.0,0.00019178,2]
[346952172,1735421448745,-229.927838,0.00019178,2]
[346952173,1735421448754,-182.770481,0.00019178,2]
[346952174,1735421448766,-221.19187705,0.00019325,2]
[346952175,1735421448779,-500.0,0.00019339,2]
[346952176,1735421448788,-500.0,0.00019339,2]
[346952177,1735421448798,-500.0,0.0001934,2]
[346952178,1735421448807,-500.0,0.0001934,2]
[346952179,1735421448817,-226.98,0.0001934,2]
[346952180,1735421448827,-2319.6,0.0001934,2]
[346952181,1735421448836,-232.4,0.00019343,2]
[346952182,1735421448845,-500.0,0.00019344,2]
[346952183,1735421448855,-676.44,0.00019345,2]
[346952184,1735421448865,-151.0,0.00019346,2]
[346952185,1735421448874,-500.0,0.00019346,2]
[346952186,1735421448884,-668.458,0.000195,2]
[346952187,1735421448894,-500.0,0.00019613,2]
[346952188,1735421448903,-500.0,0.00019613,2]
[346952189,1735421448912,-276.86,0.00019614,2]
[346952190,1735421448922,-500.0,0.00019614,2]
[346952191,1735421448932,-2319.6,0.00019614,2]
[346952192,1735421448941,-151.0,0.00019617,2]
[346952193,1735421448952,-151.0,0.00019617,2]
[346952194,1735421448961,-500.0,0.00019618,2]
[346952195,1735421448971,-1027.46,0.00019618,2]
[346952196,1735421448981,-676.44,0.00019619,2]
[346952197,1735421448990,-500.0,0.0001962,2]
[346952198,1735421449001,-595.7757822,0.00019757,2]
[346952199,1735421449010,-359.27331547,0.00019772,2]
[346952200,1735421449020,-151.0,0.000198,2]
[346952201,1735421449030,-178.64,0.00019887,2]
[346952202,1735421449107,-500.0,0.00019887,2]
[346952203,1735421449118,-500.0,0.00019888,2]
[346952204,1735421449127,-2319.6,0.00019888,2]
[346952205,1735421449137,-500.0,0.00019892,2]
[346952206,1735421449147,-151.0,0.00019893,2]
[346952207,1735421449156,-676.44,0.00019893,2]
[346952208,1735421449165,-500.0,0.00019894,2]
[346952209,1735421449175,-221.19187705,0.000199,2]
[346952210,1735421449184,-1027.46,0.00019999,2]
[346952211,1735421449194,-151.0,0.0002,3]
[346952212,1735421449203,-20000.0,0.0002,2]
[346952213,1735421449212,-151.0,0.0002,2]
[346952214,1735421449222,-500.0,0.00020161,2]
[346952215,1735421449232,-363.73,0.00020162,2]
[346952216,1735421449241,-2319.6,0.00020162,2]
[346952217,1735421449250,-153.116107,0.00020165,2]
[346952218,1735421449260,-153.116107,0.00020165,2]
[346952219,1735421449270,-500.0,0.00020166,2]
[346952220,1735421449279,-151.0,0.00020167,2]
[346952221,1735421449289,-676.44,0.00020167,2]
[346952222,1735421449299,-500.0,0.00020168,2]
[346952223,1735421449309,-1027.46,0.00020199,2]
[346952224,1735421449318,-20751.4931061,0.000202,2]
[346952225,1735421449328,-151.0,0.000202,2]
[346952226,1735421449337,-1027.46,0.00020229,2]
[346952227,1735421449347,-499.0,0.00020273,2]
[346952228,1735421449357,-151.0,0.000203,4]
[346952229,1735421449367,-261.5591028,0.00020325,2]
[346952230,1735421449377,-1027.46,0.00020427,2]
[346952231,1735421449388,-1027.46,0.00020427,2]
[346952232,1735421449397,-1027.46,0.00020427,2]
[346952233,1735421449407,-1027.46,0.00020427,2]
[346952234,1735421449417,-1027.52,0.00020427,2]
[346952235,1735421449426,-151.0,0.00020428,2]
[346952236,1735421449437,-3000.0,0.0002043,2]
[346952237,1735421449446,-151.0,0.0002043,2]
[346952238,1735421449456,-500.0,0.00020435,2]
[346952239,1735421449465,-2319.6,0.00020436,2]
[346952240,1735421449476,-500.0,0.0002044,2]
[346952241,1735421449485,-500.0,0.00020441,6]
[346952242,1735421449495,-676.44,0.00020441,2]
[346952243,1735421449504,-500.0,0.00020442,2]
[346952244,1735421449514,-400.0,0.00020447,2]
[346952245,1735421449523,-2663.58581886,0.00020487,2]
[346952246,1735421449533,-160.64966007,0.00020487,2]
[346952247,1735421449542,-181.276684,0.000205,2]
[346952248,1735421449551,-899.754909,0.00020521,2]
[346952249,1735421449561,-151.0,0.00020529,2]
[346952250,1735421449570,-151.0,0.0002053,2]
[346952251,1735421449579,-399.48150246,0.0002053,2]
[346952252,1735421449589,-150.21,0.00020532,10]
[346952253,1735421449598,-150.21,0.00020532,10]
[346952254,1735421449608,-150.21,0.00020532,10]
[346952255,1735421449617,-150.21,0.00020532,10]
[346952256,1735421449626,-199.51,0.00020532,10]
[346952257,1735421449636,-151.0,0.00020539,2]
[346952258,1735421449645,-151.0,0.00020539,2]
[346952259,1735421449654,-180.209816,0.00020539,2]
[346952260,1735421449664,-1008.1229231,0.00020547,2]
[346952261,1735421449673,-151.0,0.00020548,2]
[346952262,1735421449682,-151.0,0.00020548,2]
[346952263,1735421449692,-151.0,0.00020548,2]
[346952264,1735421449705,-151.0,0.00020548,2]
[346952265,1735421449715,-151.0,0.00020548,2]
[346952266,1735421449724,-166.716455,0.00020548,2]
[346952267,1735421449733,-500.0,0.00020573,2]
[346952268,1735421449745,-500.0,0.00020573,2]
[346952269,1735421449755,-153.116107,0.00020587,2]
[346952270,1735421449765,-153.116107,0.00020587,2]
[346952271,1735421449776,-153.116107,0.00020587,2]
[346952272,1735421449785,-153.116107,0.00020587,2]
[346952273,1735421449795,-153.116107,0.00020587,2]
[346952274,1735421449804,-153.116107,0.00020587,2]
[346952275,1735421449814,-153.116107,0.00020587,2]
[346952276,1735421449823,-153.116107,0.00020587,2]
[346952277,1735421449832,-153.116107,0.00020587,2]
[346952278,1735421449842,-153.116107,0.00020587,2]
[346952279,1735421449852,-153.116107,0.00020587,2]
[346952280,1735421449862,-153.116103,0.00020587,2]
[346952281,1735421449872,-151.0,0.00020587,2]
[346952282,1735421449881,-151.0,0.00020587,2]
[346952283,1735421449891,-151.0,0.00020587,2]
[346952284,1735421449901,-151.0,0.00020587,2]
[346952285,1735421449911,-151.0,0.00020587,2]
[346952286,1735421449921,-55863.31914743,0.00020587,10]
[346952287,1735421450026,-1110.00000007,0.00020587,10]
[346952288,1735421450038,-1153.8765159,0.00020587,10]
[346952289,1735421450049,-10278.07814445,0.00020587,10]
[346952290,1735421450061,-1030.0,0.00020587,10]
[346952291,1735421450072,-3700.0,0.00020587,10]
[346952292,1735421450083,-560.0,0.00020587,10]
[346952293,1735421450128,-500.0,0.00017971,2]
[346952294,1735421450139,-500.0,0.00018245,2]
[346952295,1735421450148,-9133.0,0.00020587,10]
[346952296,1735421450176,-44777.92732655,0.00020587,10]
[346952297,1735421450194,-420.87043536,0.00017699,2]
[346952298,1735421450237,-500.0,0.00017694,2]
[346952299,1735421450247,-79.12956464,0.00017699,2]
[346952300,1735421450255,-466.24133883,0.00020587,10]
[346952301,1735421450266,-886.77191843,0.00020587,10]
[346952302,1735421450278,-1651335.91790107,0.00020587,10]
[346952303,1735421450287,-435373.82198603,0.00020587,10]
[346952304,1735421450298,-21995.00001077,0.00020587,10]
[346952305,1735421450309,-1010.38398416,0.00020587,10]
[346952306,1735421450368,-18826.00000006,0.00020587,10]
[346952307,1735421450379,-5358.12999999,0.00020587,10]
[346952308,1735421450391,-382.00778894,0.00020587,10]
[346952309,1735421450401,-1174.5,0.00020587,10]
[346952310,1735421450413,-2200.40577024,0.00020587,10]
[346952311,1735421450424,-18606.76275359,0.00020587,10]
[346952312,1735421450435,-60908.40801747,0.00020587,10]
[346952313,1735421450446,-23943.999962,0.00020587,10]
[346952337,1735422350147,-238.71837151,0.00013695,2]
[346952338,1735422350168,-238.71837151,0.00013833,2]
[346952339,1735422350190,-400.0,0.00013973,2]
[346952340,1735422350210,-763.44533239,0.00014987,2]
[346952341,1735422350231,-245.26686877,0.00014989,2]
[346952342,1735422350251,-245.26686877,0.00014993,2]
[346952343,1735422350272,-763.44533239,0.00014993,2]
[346952344,1735422350292,-239.87339617,0.00014997,2]
[346952345,1735422425102,-238.71837151,0.00013422,2]
[346952346,1735422425124,-238.71837151,0.00013558,2]
[346952347,1735422425146,-5.3934726,0.00014997,2]
[346952348,1735422425170,-763.44533239,0.00015,2]
[346952349,1735422425192,-313.50239752,0.00017589,2]
[346952350,1735422439107,-230.59954528,0.00017413,2]
[346952351,1735422439128,-230.59954528,0.00017589,2]
[346952352,1735422439149,-239.0,0.00017684,2]
[346952353,1735422439171,-432.57938479,0.00017685,2]
[346952354,1735422446111,-230.59954528,0.00017239,2]
[346952355,1735422446131,-47.39101338,0.00017685,2]
[346952356,1735422452125,-604.82095573,0.00017489,3]
[346952357,1735422452148,-20.02960183,0.00017685,2]
[346952358,1735422452171,-262.99875512,0.00017685,2]
[346952359,1735422452194,-489.66396772,0.00017685,2]
[346952360,1735422452217,-1081.7256097,0.00017685,2]
[346952391,1735422632694,-779.66433034,0.00017508,2]
[346952392,1735422632703,-534.09912858,0.00017683,2]
[346952393,1735422632713,-500.0,0.00017684,2]
[346952394,1735422632723,-500.0,0.00017684,2]
[346952395,1735422632732,-500.0,0.00017684,2]
[346952396,1735422632742,-500.0,0.00017684,2]
[346952397,1735422632751,-500.0,0.00017684,2]
[346952399,1735422632760,-500.0,0.00017684,2]
[346952401,1735422632770,-500.0,0.00017684,2]
[346952403,1735422632779,-500.0,0.00017684,2]
[346952405,1735422632788,-500.0,0.00017684,2]
[346952407,1735422632797,-773.56,0.00017684,2]
[346952409,1735422632807,-500.0,0.00017684,2]
[346952412,1735422632817,-500.0,0.00017684,2]
[346952414,1735422632826,-500.0,0.00017684,2]
[346952416,1735422632835,-500.0,0.00017686,2]
[346952418,1735422632844,-621.436077,0.00017686,2]
[346952420,1735422632854,-500.0,0.00017686,2]
[346952421,1735422632863,-500.0,0.00017686,2]
[346952423,1735422632873,-500.0,0.00017686,2]
[346952425,1735422632883,-500.0,0.00017686,2]
[346952427,1735422632893,-500.0,0.00017686,2]
[346952429,1735422632902,-500.0,0.00017686,2]
[346952431,1735422632911,-500.0,0.00017686,2]
[346952433,1735422632920,-500.0,0.00017686,2]
[346952435,1735422632929,-500.0,0.00017686,2]
[346952437,1735422632938,-483.67326547,0.00017686,2]
[346952441,1735422632966,-16.32673453,0.00017686,2]
[346952443,1735422632975,-500.0,0.00017686,2]
[346952445,1735422632985,-500.0,0.00017686,2]
[346952447,1735422632994,-500.0,0.00017686,2]
[346952449,1735422633003,-500.0,0.00017686,2]
[346952451,1735422633011,-500.0,0.00017686,2]
[346952453,1735422633020,-500.0,0.00017686,2]
[346952455,1735422633030,-500.0,0.00017686,2]
[346952456,1735422633039,-200.0,0.00017686,2]
[346952459,1735422633049,-500.0,0.00017686,2]
[346952461,1735422633058,-500.0,0.00017686,2]
[346952462,1735422633068,-500.0,0.00017686,2]
[346952463,1735422633078,-500.0,0.00017686,2]
[346952465,1735422633087,-500.0,0.00017686,2]
[346952467,1735422633096,-500.0,0.00017686,2]
[346952469,1735422633106,-500.0,0.00017686,2]
[346952471,1735422633115,-500.0,0.00017686,2]
[346952473,1735422633124,-500.0,0.00017686,2]
[346952475,1735422633134,-500.0,0.00017686,2]
[346952477,1735422633143,-500.0,0.00017686,2]
[346952479,1735422633152,-500.0,0.00017686,2]
[346952481,1735422633162,-500.0,0.00017686,2]
[346952483,1735422633172,-500.0,0.00017686,2]
[346952485,1735422633181,-500.0,0.00017686,2]
[346952487,1735422633190,-500.0,0.00017686,2]
[346952489,1735422633199,-500.0,0.00017686,2]
[346952491,1735422633208,-500.0,0.00017686,2]
[346952493,1735422633218,-500.0,0.00017686,2]
[346952495,1735422633227,-500.0,0.00017686,2]
[346952496,1735422633237,-500.0,0.00017686,2]
[346952498,1735422633246,-500.0,0.00017686,2]
[346952500,1735422633256,-500.0,0.00017686,2]
[346952502,1735422633265,-500.0,0.00017686,2]
[346952504,1735422633275,-621.13643368,0.00017686,2]
[346952506,1735422633285,-500.0,0.00017686,2]
[346952508,1735422633295,-500.0,0.00017686,2]
[346952510,1735422633305,-500.0,0.00017686,2]
[346952512,1735422633315,-500.0,0.00017686,2]
[346952514,1735422633325,-558.41,0.00017686,2]
[346952516,1735422633334,-500.0,0.00017686,2]
[346952518,1735422633344,-500.0,0.00017686,2]
[346952520,1735422633353,-3291.30315785,0.00017686,2]
[346952522,1735422633366,-6815.12741442,0.00017686,2]
[346952524,1735422633377,-2614.8277,0.00017686,2]
[346952527,1735422633390,-9688.89172773,0.00017686,2]
[346952529,1735422633400,-500.0,0.00017686,2]
[346952530,1735422633410,-500.0,0.00017686,2]
[346952532,1735422633419,-455.70709484,0.00017686,2]
[346952534,1735422633428,-500.0,0.00017686,2]
[346952536,1735422633438,-500.0,0.00017686,2]
[346952538,1735422633448,-500.0,0.00017686,2]
[346952540,1735422633457,-500.0,0.00017686,2]
[346952542,1735422633466,-500.0,0.00017686,2]
[346952544,1735422633476,-500.0,0.00017686,2]
[346952546,1735422633486,-500.0,0.00017686,2]
[346952548,1735422633495,-500.0,0.00017686,2]
[346952550,1735422633504,-507.25932793,0.00017686,2]
[346952552,1735422633514,-500.0,0.00017686,2]
[346952554,1735422633523,-500.0,0.00017686,2]
[346952556,1735422633533,-500.0,0.00017686,2]
[346952558,1735422633542,-500.0,0.00017686,2]
[346952560,1735422633551,-500.0,0.00017686,2]
[346952562,1735422633561,-4263.43,0.00017686,2]
[346952563,1735422633570,-500.0,0.00017686,2]
[346952565,1735422633579,-500.0,0.00017688,2]
[346952567,1735422633589,-165.889,0.00017689,2]
[346952569,1735422633598,-500.0,0.00017689,2]
[346952571,1735422633608,-500.0,0.00017689,2]
[346952574,1735422633618,-500.0,0.00017689,2]
[346952575,1735422633628,-500.0,0.00017689,2]
[346952577,1735422633638,-532.50728286,0.00017689,2]
[346952579,1735422633648,-500.96220777,0.00017689,2]
[346952581,1735422633658,-500.0,0.00017689,2]
[346952583,1735422633667,-500.0,0.00017689,2]
[346952585,1735422633677,-263.64110626,0.00017689,2]
[346952587,1735422633686,-500.0,0.00017689,2]
[346952589,1735422633696,-504.0,0.00017689,2]
[346952591,1735422633705,-500.0,0.00017689,2]
[346952593,1735422633714,-500.0,0.00017689,2]
[346952595,1735422633724,-500.0,0.00017689,2]
[346952597,1735422633733,-500.0,0.00017689,2]
[346952599,1735422633743,-500.0,0.00017689,2]
[346952601,1735422633752,-500.0,0.00017689,2]
[346952603,1735422633763,-500.0,0.00017689,2]
[346952605,1735422633772,-500.0,0.00017689,2]
[346952607,1735422633782,-500.0,0.00017689,2]
[346952609,1735422633792,-500.0,0.00017689,2]
[346952611,1735422633802,-500.0,0.00017689,2]
[346952613,1735422633811,-500.0,0.00017689,2]
[346952615,1735422633822,-500.0,0.00017689,2]
[346952617,1735422633831,-500.0,0.00017689,2]
[346952619,1735422633841,-500.0,0.00017689,2]
[346952621,1735422633851,-500.0,0.00017689,2]
[346952623,1735422633860,-500.0,0.00017689,2]
[346952625,1735422633870,-500.0,0.00017689,2]
[346952627,1735422633879,-193.08728572,0.00017689,2]
[346952629,1735422633889,-500.0,0.00017689,2]
[346952631,1735422633898,-500.0,0.00017689,2]
[346952633,1735422633908,-500.0,0.00017689,2]
[346952635,1735422633917,-500.0,0.00017689,2]
[346952637,1735422633927,-500.0,0.00017689,2]
[346952639,1735422633936,-500.0,0.00017689,2]
[346952641,1735422633945,-500.0,0.00017689,2]
[346952643,1735422633954,-500.0,0.00017689,2]
[346952645,1735422633965,-500.0,0.00017689,2]
[346952647,1735422633974,-500.0,0.00017689,2]
[346952649,1735422633983,-500.0,0.00017689,2]
[346952651,1735422633992,-500.0,0.00017689,2]
[346952653,1735422634001,-500.0,0.00017689,2]
[346952655,1735422634011,-500.0,0.00017689,2]
[346952657,1735422634020,-500.0,0.00017689,2]
[346952659,1735422634029,-500.0,0.00017689,2]
[346952661,1735422634038,-500.0,0.00017689,2]
[346952662,1735422634047,-510.55129117,0.00017689,2]
[346952664,1735422634056,-500.0,0.00017689,2]
[346952666,1735422634065,-500.0,0.00017689,2]
[346952668,1735422634075,-500.0,0.00017689,2]
[346952669,1735422634084,-500.0,0.00017689,2]
[346952671,1735422634093,-500.0,0.00017689,2]
[346952673,1735422634102,-500.0,0.00017689,2]
[346952674,1735422634111,-500.0,0.00017689,2]
[346952675,1735422634121,-500.0,0.00017689,2]
[346952676,1735422634130,-500.0,0.00017689,2]
[346952677,1735422634139,-500.0,0.00017689,2]
[346952678,1735422634148,-500.0,0.00017689,2]
[346952679,1735422634157,-500.0,0.00017689,2]
[346952680,1735422634166,-500.0,0.00017689,2]
[346952681,1735422634175,-500.0,0.00017689,2]
[346952682,1735422634185,-500.0,0.00017689,2]
[346952683,1735422634194,-500.0,0.00017689,2]
[346952684,1735422634204,-500.0,0.00017689,2]
[346952685,1735422634213,-500.0,0.00017689,2]
[346952686,1735422634222,-500.0,0.00017689,2]
[346952687,1735422634231,-500.0,0.00017689,2]
[346952688,1735422634240,-500.0,0.00017689,2]
[346952689,1735422634249,-500.0,0.00017689,2]
[346952690,1735422634259,-500.0,0.00017689,2]
[346952691,1735422634268,-500.0,0.00017689,2]
[346952692,1735422634277,-500.0,0.00017689,2]
[346952693,1735422634287,-500.0,0.00017689,2]
[346952694,1735422634386,-500.0,0.00017689,2]
[346952695,1735422634396,-500.0,0.00017689,2]
[346952696,1735422634406,-500.0,0.00017689,2]
[346952697,1735422634416,-500.0,0.00017689,2]
[346952698,1735422634425,-500.0,0.00017689,2]
[346952699,1735422634434,-500.0,0.00017689,2]
[346952700,1735422634444,-500.0,0.00017689,2]
[346952701,1735422634453,-500.0,0.00017689,2]
[346952702,1735422634463,-500.0,0.00017689,2]
[346952703,1735422634472,-500.0,0.00017689,2]
[346952704,1735422634481,-500.0,0.00017689,2]
[346952705,1735422634491,-500.0,0.00017689,2]
[346952706,1735422634501,-500.0,0.00017689,2]
[346952707,1735422634511,-500.0,0.00017689,2]
[346952708,1735422634520,-500.0,0.00017689,2]
[346952709,1735422634531,-500.0,0.00017689,2]
[346952710,1735422634540,-500.0,0.00017689,2]
[346952711,1735422634549,-309.5,0.00017689,2]
[346952712,1735422634558,-500.0,0.00017689,2]
[346952713,1735422634568,-500.0,0.00017689,2]
[346952714,1735422634577,-500.0,0.00017689,2]
[346952715,1735422634586,-500.0,0.00017689,2]
[346952716,1735422634595,-500.0,0.00017689,2]
[346952717,1735422634604,-500.0,0.00017689,2]
[346952718,1735422634614,-500.0,0.00017689,2]
[346952719,1735422634623,-500.0,0.00017689,2]
[346952720,1735422634632,-500.0,0.00017689,2]
[346952721,1735422634643,-500.0,0.00017689,2]
[346952722,1735422634652,-500.24093591,0.00017689,2]
[346952723,1735422634661,-500.0,0.00017689,2]
[346952724,1735422634670,-500.0,0.00017689,2]
[346952725,1735422634680,-500.0,0.00017689,2]
[346952726,1735422634690,-500.0,0.00017689,2]
[346952727,1735422634699,-500.0,0.00017689,2]
[346952728,1735422634709,-500.0,0.0001769,2]
[346952729,1735422634718,-500.0,0.00017691,2]
[346952730,1735422634728,-500.0,0.00017691,2]
[346952731,1735422634737,-500.0,0.00017691,2]
[346952732,1735422634747,-500.0,0.00017691,2]
[346952733,1735422634756,-500.0,0.00017691,2]
[346952734,1735422634766,-500.0,0.00017691,2]
[346952735,1735422634775,-500.0,0.00017693,2]
[346952736,1735422634787,-500.0,0.00017693,2]
[346952737,1735422634797,-500.0,0.00017693,2]
[346952738,1735422634807,-500.0,0.00017693,2]
[346952739,1735422634817,-500.0,0.00017694,2]
[346952740,1735422634829,-500.0,0.00017694,2]
[346952741,1735422634840,-521.56,0.00017694,2]
[346952742,1735422634850,-500.0,0.00017694,2]
[346952743,1735422634860,-500.0,0.00017694,2]
[346952744,1735422634870,-500.0,0.00017694,2]
[346952745,1735422634880,-500.0,0.00017694,2]
[346952746,1735422634890,-500.0,0.00017694,2]
[346952747,1735422634899,-500.0,0.00017694,2]
[346952748,1735422634909,-500.0,0.00017694,2]
[346952749,1735422634919,-500.0,0.00017694,2]
[346952750,1735422634928,-500.0,0.00017694,2]
[346952751,1735422634937,-500.0,0.00017694,2]
[346952752,1735422634947,-500.0,0.00017694,2]
[346952753,1735422634959,-500.0,0.00017694,2]
[346952754,1735422634969,-500.0,0.00017694,2]
[346952755,1735422634980,-500.0,0.00017694,2]
[346952756,1735422634990,-500.0,0.00017694,2]
[346952757,1735422634999,-500.0,0.00017694,2]
[346952758,1735422635009,-500.0,0.00017694,2]
[346952759,1735422635018,-500.0,0.00017694,2]
[346952760,1735422635028,-500.0,0.00017694,2]
[346952761,1735422635038,-500.0,0.00017694,2]
[346952762,1735422635047,-500.0,0.00017694,2]
[346952763,1735422635057,-500.0,0.00017694,2]
[346952764,1735422635067,-500.0,0.00017694,2]
[346952765,1735422635077,-500.0,0.00017694,2]
[346952766,1735422635087,-500.0,0.00017694,2]
[346952767,1735422635098,-500.0,0.00017694,2]
[346952768,1735422635108,-500.0,0.00017694,2]
[346952769,1735422635117,-500.0,0.00017694,2]
[346952770,1735422635126,-500.0,0.00017694,2]
[346952771,1735422635136,-500.0,0.00017694,2]
[346952772,1735422635146,-500.0,0.00017694,2]
[346952773,1735422635155,-500.0,0.00017694,2]
[346952774,1735422635167,-500.0,0.00017694,2]
[346952775,1735422635179,-505.56482017,0.00017694,2]
[346952776,1735422635189,-500.0,0.00017694,2]
[346952777,1735422635199,-500.0,0.00017694,2]
[346952778,1735422635208,-483.33101471,0.00017694,2]
[346952779,1735422635218,-500.0,0.00017694,2]
[346952780,1735422635227,-500.0,0.00017694,2]
[346952781,1735422635237,-500.0,0.00017694,2]
[346952782,1735422635247,-500.0,0.00017694,2]
[346952783,1735422635256,-500.0,0.00017694,2]
[346952784,1735422635266,-500.0,0.00017694,2]
[346952785,1735422635276,-500.0,0.00017694,2]
[346952786,1735422635286,-500.0,0.00017694,2]
[346952787,1735422635295,-500.0,0.00017694,2]
[346952788,1735422635305,-325.4,0.00017694,2]
[346952789,1735422635314,-500.0,0.00017694,2]
[346952790,1735422635323,-500.0,0.00017694,2]
[346952791,1735422635332,-500.0,0.00017694,2]
[346952792,1735422635342,-500.0,0.00017694,2]
[346952793,1735422635351,-500.0,0.00017694,2]
[346952794,1735422635361,-500.0,0.00017694,2]
[346952795,1735422635371,-500.0,0.00017694,2]
[346952796,1735422635379,-500.0,0.00017694,2]
[346952797,1735422635389,-500.0,0.00017694,2]
[346952798,1735422635398,-500.0,0.00017694,2]
[346952799,1735422635407,-500.0,0.00017694,2]
[346952800,1735422635416,-500.0,0.00017694,2]
[346952801,1735422635425,-500.0,0.00017694,2]
[346952802,1735422635434,-500.0,0.00017694,2]
[346952803,1735422635443,-113.64438513,0.00017694,2]
[346952820,1735422638574,-800.88919395,0.00017683,2]
[346952821,1735422638586,-280.34562323,0.00017683,2]
[346952822,1735422638596,-500.0,0.00017683,2]
[346952823,1735422638605,-629.0888944,0.00017683,2]
[346952824,1735422638615,-1081.23481718,0.00017683,2]
[346952825,1735422638624,-500.0,0.00017683,2]
[346952826,1735422638634,-1081.23481718,0.00017683,2]
[346952827,1735422638644,-500.0,0.00017683,2]
[346952828,1735422638653,-1007.69679801,0.00017683,2]
[346952829,1735422638665,-73.53801917,0.00017683,2]
[346952830,1735422638674,-933.56198083,0.00017683,2]
[346952831,1735422638691,-147.67283635,0.00017683,2]
[346952832,1735422638700,-253.66206901,0.00017683,2]
[346952833,1735422638711,-246.33793099,0.00017683,2]
[346952834,1735422638720,-1081.23481718,0.00017683,2]
[346952835,1735422638729,-500.0,0.00017683,2]
[346952836,1735422638738,-1081.23481718,0.00017683,2]
[346952837,1735422638747,-418.11930299,0.00017683,2]
[346952838,1735422638759,-663.11551419,0.00017683,2]
[346952839,1735422638768,-500.0,0.00017683,2]
[346952840,1735422638777,-16.88448581,0.00017683,2]
[346952867,1735422640639,-1064.35033137,0.00017683,2]
[346952869,1735422640648,-1081.23481718,0.00017683,2]
[346952870,1735422640658,-70.47330766,0.00017683,2]
[346952871,1735422640695,-1010.76150952,0.00017683,2]
[346952872,1735422640704,-8.23849048,0.00017683,2]
[346952873,1735422640715,-1072.9963267,0.00017683,2]
[346952874,1735422640724,-1081.23481718,0.00017683,2]
[346952875,1735422640734,-1081.23481718,0.00017683,2]
[346952876,1735422640743,-1081.23481718,0.00017683,2]
[346952877,1735422640752,-1081.23481718,0.00017683,2]
[346952878,1735422640761,-1081.23481718,0.00017683,2]
[346952879,1735422640770,-1081.23481718,0.00017683,2]
[346952880,1735422640779,-1081.23481718,0.00017683,2]
[346952881,1735422640789,-1081.23481718,0.00017683,2]
[346952882,1735422640798,-1081.23481718,0.00017683,2]
[346952883,1735422640807,-1081.23481718,0.00017683,2]
[346952884,1735422640819,-1081.23481718,0.00017683,2]
[346952885,1735422640828,-1081.23481718,0.00017683,2]
[346952886,1735422640837,-1081.23481718,0.00017683,2]
[346952887,1735422640846,-1081.23481718,0.00017683,2]
[346952888,1735422640855,-1081.23481718,0.00017683,2]
[346952889,1735422640864,-1081.23481718,0.00017683,2]
[346952890,1735422640873,-1081.23481718,0.00017683,2]
[346952891,1735422640884,-1081.23481718,0.00017683,2]
[346952892,1735422640971,-1081.23481718,0.00017683,2]
[346952893,1735422640982,-1081.23481718,0.00017683,2]
[346952894,1735422640994,-1081.23481718,0.00017683,2]
[346952895,1735422641003,-1081.23481718,0.00017683,2]
[346952896,1735422641012,-1081.23481718,0.00017683,2]
[346952897,1735422641022,-1081.23481718,0.00017683,2]
[346952898,1735422641030,-1081.23481718,0.00017683,2]